fUSD/lending_fUSD_20251017
["ID","MTS","AMOUNT","RATE_DAILY","PERIOD"]
[391670520,1760724603727,-151.0,0.000341,120]
[391670521,1760724603760,-151.0,0.000348,120]
[391670522,1760724603794,-151.0,0.000356,120]
[391670523,1760724603831,-150.0,0.00036225,60]
[391670524,1760724603868,-151.0,0.000364,120]
[391670525,1760724603903,-1545.14557137,0.00037,120]
[391670526,1760724603940,-151.0,0.000371,120]
[391670527,1760724603975,-200.0,0.00037595,60]
[391670528,1760724604011,-151.0,0.000379,120]
[391670529,1760724604048,-151.0,0.000387,120]
[391670530,1760724604085,-151.0,0.000394,120]
[391670531,1760724604124,-151.0,0.000402,120]
[391670532,1760724604170,-151.0,0.00040998,120]
[391670533,1760724604205,-151.0,0.00040998,120]
[391670534,1760724604240,-151.0,0.00041,120]
[391670535,1760724604275,-500.0,0.00041096,30]
[391670536,1760724604309,-500.0,0.00041096,30]
[391670537,1760724604340,-500.0,0.00041096,30]
[391670538,1760724604372,-500.0,0.00041096,30]
[391670539,1760724604405,-500.0,0.00041096,30]
[391670540,1760724604440,-500.0,0.00041096,30]
[391670541,1760724604487,-500.0,0.00041096,30]
[391670542,1760724604521,-500.0,0.00041096,30]
[391670543,1760724604553,-500.0,0.00041096,30]
[391670544,1760724604588,-500.0,0.00041096,30]
[391670545,1760724604621,-500.0,0.00041096,30]
[391670546,1760724604652,-500.0,0.00041096,30]
[391670547,1760724604686,-500.0,0.00041096,30]
[391670548,1760724604720,-500.0,0.00041096,30]
[391670549,1760724604756,-151.0,0.000417,120]
[391670550,1760724604793,-151.0,0.000425,120]
[391670551,1760724604828,-151.0,0.00042997,120]
[391670552,1760724604864,-151.0,0.000433,120]
[391670553,1760724604901,-432777.8744,0.00043444,30]
[391670554,1760724604940,-151.0,0.00044,120]
[391670555,1760724604975,-13871.42,0.0004475,120]
[391670556,1760724605011,-182.17351389,0.0004475,120]
[391670557,1760724605047,-151.0,0.000448,120]
[391670558,1760724605081,-17500.0,0.0004499,120]
[391670559,1760724605119,-243913.89963641,0.00045,120]
[391670560,1760724605153,-544876.0,0.00045,120]
[391670561,1760724605185,-200.0,0.00045,120]
[391670562,1760724605216,-15000.0,0.00045,120]
[391670563,1760724605247,-150.0,0.00045,90]
[391670564,1760724605281,-3719120.97687833,0.00045,120]
[391670565,1760724608964,-5000000.0,0.00045,120]
[391670566,1760724613329,-1000.0,0.00040897,30]
[391670567,1760724613366,-300.0,0.00044999,30]
[391670568,1760724613401,-300.0,0.00044999,30]
[391670569,1760724613430,-500.0,0.00044999,120]
[391670570,1760724613461,-2192658.58953446,0.00045,120]
[391670571,1760724613490,-19276.69749548,0.00045,120]
[391670572,1760724613520,-5972.3553656,0.00045,120]
[391670573,1760724613549,-164.89621663,0.00045,120]
[391670574,1760724613579,-10000.0,0.00045,90]
[391670575,1760724613607,-500.0,0.00045,120]
[391670576,1760724613635,-5057.54384817,0.00045,120]
[391670577,1760724613665,-303193.81217797,0.00045,120]
[391670578,1760724613695,-8436.0,0.00045,120]
[391670579,1760724613725,-12567.0,0.00045,120]
[391670580,1760724613754,-1000000.0,0.00045,120]
[391670581,1760724613783,-50000.0,0.00045,90]
[391670582,1760724613811,-2500.0,0.00045,120]
[391670583,1760724613841,-1570.0,0.00045,120]
[391670584,1760724613870,-201.09,0.00045,30]
[391670585,1760724613902,-2500.0,0.00045,120]
[391670586,1760724613937,-500.0,0.00045,120]
[391670587,1760724613969,-1091.0,0.000452,30]
[391670588,1760724614002,-500.0,0.00045274,120]
[391670589,1760724614033,-3012.55,0.000454,120]
[391670590,1760724614065,-432777.8745,0.00045444,30]
[391670591,1760724614096,-200.0,0.00045497,120]
[391670592,1760724614126,-50000.0,0.000455,31]
[391670593,1760724614157,-50000.0,0.000455,31]
[391670594,1760724614190,-998.64793638,0.000455,120]
[391670595,1760724614220,-2500.0,0.000455,120]
[391670596,1760724614248,-2500.0,0.000455,120]
[391670597,1760724614277,-500.0,0.00045548,120]
[391670598,1760724614306,-3098.45,0.000456,120]
[391670599,1760724614336,-151.0,0.000456,120]
[391670600,1760724614365,-900.0,0.00045656,60]
[391670601,1760724614397,-500.0,0.00045656,60]
[391670602,1760724614427,-1000.0,0.00045666,60]
[391670603,1760724614456,-41983.86231505,0.000458,120]
[391670604,1760724614485,-20000.0,0.000458,120]
[391670605,1760724614515,-500.0,0.00045822,120]
[391670606,1760724614544,-51420.23780676,0.000459,30]
[391670607,1760724614572,-152.0,0.000459,120]
[391670608,1760724614602,-500.0,0.0004593,60]
[391670609,1760724614631,-1000.0,0.00045999,120]
[391670610,1760724614659,-203.87601984,0.00046,30]
[391670611,1760724614688,-1000.0,0.00046,30]
[391670612,1760724614716,-3193.27416277,0.00046,30]
[391670613,1760724614744,-50000.0,0.00046,32]
[391670614,1760724614772,-150.0,0.00046,50]
[391670615,1760724614800,-662969.24262089,0.00046,120]
[391670616,1760724617124,-718516.3928035,0.00043985,56]
[391670617,1760724617163,-150.0,0.0004475,120]
[391670618,1760724617199,-337030.75737911,0.00046,120]
[391670619,1760724617232,-1000000.0,0.00046,120]
[391670620,1760724617264,-1000000.0,0.00046,120]
[391670621,1760724617296,-1000000.0,0.00046,120]
[391670622,1760724617327,-2000.0,0.00046,120]
[391670623,1760724617359,-942302.84981739,0.00046,120]
[391670624,1760724621903,-1432233.1242177,0.00043985,56]
[391670625,1760724621946,-57697.15018261,0.00046,120]
[391670626,1760724621984,-2167.66355572,0.00046,120]
[391670627,1760724622024,-450000.00000001,0.00046,120]
[391670628,1760724622063,-500.0,0.00046,120]
[391670629,1760724622100,-6307.9,0.00046,120]
[391670630,1760724622139,-1000000.0,0.00046,120]
[391670631,1760724622180,-300.0,0.00046,120]
[391670632,1760724622218,-2050794.16204396,0.00046,120]
[391670633,1760724626647,-201.1,0.000371,30]
[391670634,1760724626706,-201.1,0.000417,30]
[391670635,1760724626738,-500.0,0.00043356,60]
[391670636,1760724626769,-500.0,0.00044452,60]
[391670637,1760724626802,-13798.94,0.0004475,120]
[391670638,1760724626838,-1000.0,0.00045999,120]
[391670639,1760724626870,-1869842.53659114,0.00046,120]
[391670640,1760724626900,-30612.76451941,0.00046,120]
[391670641,1760724626940,-175.95571075,0.00046,120]
[391670642,1760724626978,-302.36532412,0.00046,120]
[391670643,1760724627013,-836.11068473,0.00046,120]
[391670644,1760724627048,-11000.0,0.00046,90]
[391670645,1760724627082,-4593.35528271,0.00046,120]
[391670646,1760724627117,-1758.84032338,0.00046,120]
[391670647,1760724627152,-8367.29202036,0.00046,120]
[391670648,1760724627188,-2500.0,0.00046,120]
[391670649,1760724627223,-2500.0,0.00046,120]
[391670650,1760724627256,-1791.22,0.00046,30]
[391670651,1760724627289,-151.0,0.00046,120]
[391670652,1760724627321,-151.0,0.00046,120]
[391670653,1760724627354,-151.0,0.00046,120]
[391670654,1760724627386,-151.0,0.00046,120]
[391670655,1760724627419,-151.0,0.00046,120]
[391670656,1760724627450,-151.0,0.00046,120]
[391670657,1760724627482,-151.0,0.00046,120]
[391670658,1760724627515,-151.0,0.00046,120]
[391670659,1760724627549,-151.0,0.00046,120]
[391670660,1760724627583,-151.0,0.00046,120]
[391670661,1760724627617,-151.0,0.00046,120]
[391670662,1760724627649,-191.810584,0.00046,120]
[391670663,1760724627683,-151.0,0.00046,120]
[391670664,1760724627716,-151.0,0.00046,120]
[391670665,1760724627750,-500.0,0.00046096,120]
[391670666,1760724627782,-431.56864388,0.0004613,120]
[391670667,1760724627814,-8607.13454984,0.00046139,120]
[391670668,1760724627853,-27059.32502291,0.00046139,120]
[391670669,1760724627886,-1639.45419998,0.00046141,120]
[391670670,1760724627922,-917.27678061,0.00046144,120]
[391670671,1760724627955,-2550.95816775,0.00046145,120]
[391670672,1760724627988,-141878.0959113,0.00046147,120]
[391670673,1760724628019,-2179.57000534,0.0004615,120]
[391670674,1760724628049,-2550.95816775,0.00046155,120]
[391670675,1760724628079,-3346.15379057,0.00046159,120]
[391670676,1760724628111,-1639.45419998,0.0004616,120]
[391670677,1760724628145,-917.27678061,0.0004616,120]
[391670678,1760724628178,-357.87178322,0.00046162,120]
[391670679,1760724628214,-438.34722841,0.00046163,120]
[391670680,1760724628250,-435.91400107,0.00046166,120]
[391670681,1760724628284,-1581.38253214,0.00046169,120]
[391670682,1760724628316,-917.27678061,0.00046169,120]
[391670683,1760724628347,-357.87178322,0.00046171,120]
[391670684,1760724628375,-15528.50707751,0.00046171,120]
[391670685,1760724628408,-1581.38253214,0.00046172,120]
[391670686,1760724628437,-502.20935713,0.00046176,120]
[391670687,1760724628466,-1109.68969356,0.00046177,120]
[391670688,1760724628495,-1109.68969356,0.00046178,120]
[391670689,1760724628525,-27059.32502291,0.00046186,120]
[391670690,1760724628556,-1581.38253214,0.00046189,120]
[391670691,1760724628586,-435.91400107,0.00046189,120]
[391670692,1760724628616,-2957.81087191,0.0004619,120]
[391670693,1760724628647,-917.27678061,0.0004619,120]
[391670694,1760724628678,-7855.36772255,0.00046192,120]
[391670695,1760724628708,-2550.95816775,0.00046194,120]
[391670696,1760724628738,-8575.56975856,0.00046196,120]
[391670697,1760724628767,-276.30661929,0.00046199,120]
[391670698,1760724628796,-435.91400107,0.000462,120]
[391670699,1760724629212,-2957.81087191,0.00046203,120]
[391670700,1760724629244,-917.27678061,0.00046209,120]
[391670701,1760724629276,-435.91400106,0.0004621,120]
[391670702,1760724629304,-3346.15379057,0.00046218,120]
[391670703,1760724629334,-2957.81087191,0.0004622,120]
[391670704,1760724629362,-500.0,0.0004622,120]
[391670705,1760724629390,-9631.40619646,0.00046223,120]
[391670706,1760724629419,-276.30661929,0.00046227,120]
[391670707,1760724629448,-45021.7412324,0.0004623,120]
[391670708,1760724629476,-15528.50707751,0.0004623,120]
[391670709,1760724629504,-8607.13454984,0.00046231,120]
[391670710,1760724629535,-8575.56975856,0.00046232,120]
[391670711,1760724629568,-357.87178322,0.00046233,120]
[391670712,1760724629601,-174.48452515,0.00046234,120]
[391670713,1760724629631,-8607.13454984,0.00046234,120]
[391670714,1760724629663,-1109.68969356,0.00046234,120]
[391670715,1760724629695,-276.30661929,0.00046244,120]
[391670716,1760724629726,-1639.45419998,0.00046245,120]
[391670717,1760724629757,-18073.73750196,0.00046246,120]
[391670718,1760724629792,-27059.32502291,0.00046247,120]
[391670719,1760724629825,-1109.68969356,0.0004625,120]
[391670720,1760724629858,-276.30661929,0.00046251,120]
[391670721,1760724629891,-1581.38253214,0.00046252,120]
[391670722,1760724629924,-435.91400106,0.00046253,120]
[391670723,1760724629955,-7855.36772255,0.00046253,120]
[391670724,1760724629987,-8575.56975856,0.00046253,120]
[391670725,1760724630024,-195.86587828,0.00046254,120]
[391670726,1760724630058,-9631.40619646,0.00046262,120]
[391670727,1760724630088,-9631.40619646,0.00046267,120]
[391670728,1760724630117,-15528.50707751,0.0004627,120]
[391670729,1760724630147,-174.48452515,0.00046271,120]
[391670730,1760724630176,-438.34722841,0.00046274,120]
[391670731,1760724630206,-435.91400107,0.00046279,120]
[391670732,1760724630236,-357.87178322,0.0004628,120]
[391670733,1760724630267,-917.27678061,0.00046284,120]
[391670734,1760724630298,-141878.0959113,0.00046285,120]
[391670735,1760724630326,-435.91400106,0.00046286,120]
[391670736,1760724630355,-2957.81087191,0.00046289,120]
[391670737,1760724630383,-8607.13454984,0.0004629,120]
[391670738,1760724630414,-27059.32502291,0.00046291,120]
[391670739,1760724630443,-2957.81087191,0.00046292,120]
[391670740,1760724630474,-195.86587828,0.00046294,120]
[391670741,1760724630503,-435.91400107,0.00046298,120]
[391670742,1760724630532,-27059.32502291,0.00046299,120]
[391670743,1760724630562,-151.0,0.000463,120]
[391670744,1760724630593,-1581.38253214,0.000463,120]
[391670745,1760724630622,-45021.7412324,0.00046303,120]
[391670746,1760724630651,-141878.0959113,0.00046304,120]
[391670747,1760724630679,-27059.32502291,0.00046311,120]
[391670748,1760724630708,-174.48452515,0.00046314,120]
[391670749,1760724630736,-438.34722841,0.00046319,120]
[391670750,1760724630764,-2179.57000534,0.0004632,120]
[391670751,1760724630792,-9631.40619646,0.00046322,120]
[391670752,1760724630820,-502.20935713,0.00046323,120]
[391670753,1760724630848,-276.30661929,0.00046325,120]
[391670754,1760724630876,-8575.56975856,0.00046326,120]
[391670755,1760724630908,-174.48452515,0.00046327,120]
[391670756,1760724630943,-276.30661929,0.0004633,120]
[391670757,1760724630976,-2179.57000534,0.0004633,120]
[391670758,1760724631010,-7855.36772255,0.00046333,120]
[391670759,1760724631041,-917.27678061,0.00046347,120]
[391670760,1760724631079,-435.91400106,0.00046349,120]
[391670761,1760724631115,-3346.15379057,0.00046353,120]
[391670762,1760724631148,-917.27678061,0.00046357,120]
[391670763,1760724631180,-141878.0959113,0.00046358,120]
[391670764,1760724631212,-8575.56975856,0.00046361,120]
[391670765,1760724631245,-195.86587828,0.00046362,120]
[391670766,1760724631275,-357.87178322,0.00046362,120]
[391670767,1760724631304,-1639.45419998,0.00046363,120]
[391670768,1760724631331,-1639.45419998,0.00046364,120]
[391670769,1760724631359,-1639.45419998,0.00046364,120]
[391670770,1760724631386,-9631.40619646,0.00046365,120]
[391670771,1760724631414,-438.34722841,0.00046368,120]
[391670772,1760724631442,-500.0,0.0004637,120]
[391670773,1760724631470,-195.86587828,0.00046375,120]
[391670774,1760724631498,-917.27678061,0.00046379,120]
[391670775,1760724631527,-435.91400107,0.0004638,120]
[391670776,1760724631554,-438.34722841,0.0004638,120]
[391670777,1760724631584,-7855.36772255,0.00046383,120]
[391670778,1760724631613,-438.34722841,0.00046384,120]
[391670779,1760724631645,-2550.95816775,0.00046384,120]
[391670781,1760724631683,-2179.57000534,0.00046385,120]
[391670783,1760724631713,-195.86587828,0.00046386,120]
[391670784,1760724631743,-435.91400107,0.00046387,120]
[391670787,1760724631772,-8607.13454984,0.0004639,120]
[391670791,1760724631801,-15528.50707751,0.0004639,120]
[391670795,1760724631830,-195.86587828,0.0004639,120]
[391670798,1760724631860,-502.20935713,0.00046391,120]
[391670799,1760724631889,-2550.95816775,0.00046393,120]
[391670800,1760724631923,-45021.7412324,0.00046394,120]
[391670801,1760724631954,-45021.7412324,0.00046398,120]
[391670802,1760724631985,-141878.0959113,0.00046398,120]
[391670803,1760724632018,-9631.40619646,0.00046399,120]
[391670804,1760724632048,-869.66528233,0.000464,120]
[391670805,1760724632078,-1581.38253214,0.00046404,120]
[391670806,1760724632108,-3346.15379057,0.00046404,120]
[391670807,1760724632139,-2179.57000534,0.00046405,120]
[391670808,1760724632283,-2957.81087191,0.00046408,120]
[391670809,1760724632317,-435.91400106,0.00046408,120]
[391670812,1760724632352,-27059.32502291,0.00046408,120]
[391670815,1760724632383,-1109.68969356,0.0004641,120]
[391670819,1760724632415,-2957.81087191,0.00046416,120]
[391670823,1760724632445,-276.30661929,0.00046416,120]
[391670827,1760724632475,-917.27678061,0.0004642,120]
[391670831,1760724632504,-2179.57000534,0.00046422,120]
[391670834,1760724632534,-3346.15379057,0.00046424,120]
[391670838,1760724632563,-174.48452515,0.00046429,120]
[391670842,1760724632593,-195.86587828,0.0004643,120]
[391670846,1760724632622,-1109.68969356,0.00046434,120]
[391670850,1760724632652,-174.48452515,0.00046435,120]
[391670853,1760724632680,-3346.15379057,0.00046436,120]
[391670856,1760724632708,-8575.56975856,0.00046439,120]
[391670860,1760724632735,-15528.50707751,0.0004644,120]
[391670861,1760724632764,-1639.45419998,0.0004644,120]
[391670862,1760724632793,-357.87178322,0.00046442,120]
[391670863,1760724632822,-917.27678061,0.00046442,120]
[391670864,1760724632851,-435.91400106,0.00046443,120]
[391670865,1760724632882,-141878.0959113,0.00046448,120]
[391670866,1760724632915,-45021.7412324,0.00046448,120]
[391670867,1760724632944,-917.27678061,0.00046449,120]
[391670868,1760724632975,-3346.15379057,0.00046451,120]
[391670869,1760724633006,-917.27678061,0.00046453,120]
[391670870,1760724633038,-502.20935713,0.00046458,120]
[391670871,1760724633071,-141878.0959113,0.00046459,120]
[391670872,1760724633111,-502.20935713,0.00046459,120]
[391670873,1760724633146,-2550.95816775,0.00046462,120]
[391670874,1760724633181,-357.87178322,0.00046464,120]
[391670875,1760724633214,-2179.57000534,0.00046465,120]
[391670876,1760724633249,-7855.36772255,0.00046466,120]
[391670877,1760724633283,-1109.68969356,0.0004647,120]
[391670878,1760724633315,-8607.13454984,0.0004647,120]
[391670879,1760724633346,-438.34722841,0.00046471,120]
[391670880,1760724633376,-8575.56975856,0.00046475,120]
[391670881,1760724633406,-502.20935713,0.00046475,120]
[391670882,1760724633436,-917.27678061,0.00046478,120]
[391670883,1760724633465,-174.48452515,0.00046478,120]
[391670884,1760724633495,-7855.36772255,0.00046478,120]
[391670885,1760724633523,-9631.40619646,0.0004648,120]
[391670886,1760724633552,-45021.7412324,0.00046484,120]
[391670887,1760724633581,-15528.50707751,0.00046489,120]
[391670888,1760724633611,-502.20935713,0.0004649,120]
[391670889,1760724633641,-3105.5471624,0.0004649,120]
[391670890,1760724633674,-1581.38253214,0.00046491,120]
[391670891,1760724633705,-435.91400106,0.00046492,120]
[391670892,1760724633735,-2550.95816775,0.00046493,120]
[391670893,1760724633767,-7855.36772255,0.00046493,120]
[391670894,1760724633798,-15528.50707751,0.00046495,120]
[391670895,1760724633830,-8607.13454984,0.00046497,120]
[391670896,1760724633860,-45021.7412324,0.00046498,120]
[391670897,1760724633890,-50000.0,0.000465,32]
[391670898,1760724633926,-401.62134143,0.000465,120]
[391670899,1760724633958,-2500.0,0.000465,120]
[391670900,1760724633992,-2500.0,0.000465,120]
[391670901,1760724634026,-15246.14,0.00046575,120]
[391670902,1760724634144,500.0,0.00045548,60]
[391670903,1760724634190,151.0,0.00044547,120]
[391670904,1760724634254,151.0,0.00046,120]
[391670905,1760724634292,197.799123,0.00046,120]
[391670906,1760724634385,151.0,0.00046,120]
[391670907,1760724634419,-1000.0,0.00019699,2]
[391670908,1760724634429,-611.28411114,0.00019899,2]
[391670909,1760724634440,-588.71588886,0.00019899,2]
[391670910,1760724634449,-4342.12778251,0.000199,2]
[391670911,1760724634460,-926.7019046,0.000199,2]
[391670912,1760724634931,-3692.1025967,0.000199,2]
[391670913,1760724634940,-200.0,0.00020079,2]
[391670914,1760724634949,-304.86,0.00020098,2]
[391670915,1760724634959,-300.6,0.00020098,2]
[391670916,1760724634968,-301.06,0.00020098,2]
[391670917,1760724634977,-303.1,0.00020098,2]
[391670918,1760724634986,-303.53,0.00020098,2]
[391670919,1760724634996,-301.1,0.00020098,2]
[391670920,1760724635005,-302.91,0.00020099,2]
[391670921,1760724635013,-305.58,0.00020099,2]
[391670922,1760724635023,-301.47,0.000201,2]
[391670923,1760724635032,-301.66,0.000201,2]
[391670924,1760724635049,-2137.5954963,0.000201,2]
[391670925,1760724635063,-614.37390575,0.000201,2]
[391670926,1760724635074,-1715.60111241,0.000201,2]
[391670927,1760724635085,-5793.47150132,0.000201,2]
[391670928,1760724635094,-691.74704173,0.000203,2]
[391670929,1760724635105,-9569.29497405,0.000203,2]
[391670930,1760724635114,-1100.0,0.00020309,2]
[391670931,1760724635124,-25.70502595,0.0002031,2]
[391670932,1760724635136,-4024.933071,0.0002031,2]
[391670933,1760724635149,-495.52614819,0.0002031,2]
[391670934,1760724635404,151.0,0.00046,120]
[391670935,1760724635691,151.0,0.00046,120]
[391670942,1760724637770,-82680.32575486,0.0002031,2]
[391670943,1760724637779,-1000.0,0.00020421,2]
[391670944,1760724637788,-10261.04201578,0.000205,2]
[391670945,1760724637798,-281.34026588,0.00020582,2]
[391670946,1760724637811,-10261.04201578,0.000207,2]
[391670947,1760724637820,-4184.05,0.00020725,2]
[391670948,1760724637829,-10261.04201578,0.000209,2]
[391670949,1760724637838,-1500.0,0.00020968,2]
[391670950,1760724637847,-1249.75000001,0.00021072,2]
[391670951,1760724637856,-246.11304303,0.00021073,2]
[391670952,1760724637866,-500.0,0.00021073,2]
[391670953,1760724637875,-500.0,0.00021073,2]
[391670954,1760724637886,-500.0,0.00021073,2]
[391670955,1760724637895,-500.0,0.00021073,2]
[391670956,1760724637905,-500.0,0.00021073,2]
[391670957,1760724637917,-500.0,0.00021073,2]
[391670958,1760724637929,-500.0,0.00021073,2]
[391670959,1760724637938,-866.99,0.00021073,2]
[391670960,1760724637947,-171518.34,0.00021094,7]
[391670961,1760724637956,-10261.04201578,0.000211,2]
[391670962,1760724637967,-400.0,0.00021116,2]
[391670963,1760724637976,-3909.47059457,0.00021192,2]
[391670965,1760724637985,-1247.84957982,0.00021264,2]
[391670966,1760724638001,-3925.42042018,0.00021264,2]
[391670967,1760724638015,-188.0,0.00021284,2]
[391670989,1760724638232,-200.0,0.00021292,2]
[391670991,1760724638242,-4260.83415107,0.000213,2]
[391670993,1760724638253,-600.402815,0.000213,2]
[391671097,1760724639205,500.0,0.00043356,60]
[391671136,1760724639566,8720.0,0.00046325,120]
[391671171,1760724639883,-5399.80504971,0.000213,2]
[391671173,1760724639892,-2499.58,0.00021321,2]
[391671175,1760724639902,-500.0,0.0002133,2]
[391671177,1760724639912,-866.99,0.00021347,2]
[391671178,1760724639926,-500.0,0.00021621,2]
[391671180,1760724639936,-500.0,0.00021621,2]
[391671182,1760724639946,-500.0,0.00021621,2]
[391671184,1760724639955,-500.0,0.00021621,2]
[391671186,1760724639965,-500.0,0.00021621,2]
[391671188,1760724639975,-1000.0,0.00021621,2]
[391671190,1760724639984,-1000.0,0.00021621,2]
[391671192,1760724639995,-866.99,0.00021621,2]
[391671194,1760724640004,-1680.0,0.00021774,2]
[391671196,1760724640014,-164.67649827,0.00021808,2]
[391671198,1760724640023,-1000.0,0.00021878,2]
[391671200,1760724640032,-866.99,0.00021895,2]
[391671202,1760724640042,-400.0,0.00021908,2]
[391671204,1760724640052,-300.0,0.00022108,2]
[391671207,1760724640062,-500.0,0.00022109,3]
[391671209,1760724640075,-195.0,0.00022109,2]
[391671211,1760724640085,-300.0,0.00022109,2]
[391671213,1760724640094,-1000.0,0.00022161,2]
[391671215,1760724640103,-866.99,0.00022168,2]
[391671217,1760724640112,-1433.95445627,0.00022168,2]
[391671218,1760724640121,-1000.0,0.00022168,2]
[391671220,1760724640131,-1500.0,0.00022426,2]
[391671222,1760724640140,-866.99,0.00022442,2]
[391671224,1760724640150,-400.0,0.000227,2]
[391671226,1760724640159,-866.99,0.00022716,2]
[391671228,1760724640169,-264.0,0.00022849,2]
[391671231,1760724640178,-866.99,0.0002299,2]
[391671232,1760724640187,-264.0,0.00023121,2]
[391671234,1760724640197,-3295.03621571,0.0002329,2]
[391671236,1760724640206,-200.0,0.00023295,2]
[391671238,1760724640215,-500.0,0.00023295,2]
[391671240,1760724640225,-6717.92,0.00023372,2]
[391671241,1760724640234,-400.0,0.00023492,2]
[391671242,1760724640243,-412.0,0.00023826,2]
[391671243,1760724640253,-3909.4705945,0.00023826,2]
[391671244,1760724640262,-400.0,0.00023843,2]
[391671245,1760724640275,-1000.0,0.00023843,2]
[391671246,1760724640284,-400.0,0.00024284,2]
[391671247,1760724640294,-200.0,0.00024391,2]
[391671248,1760724640303,-1000.0,0.00024391,2]
[391671249,1760724640312,-1353.2916,0.00024557,2]
[391671250,1760724640321,-500.0,0.00024573,2]
[391671252,1760724640330,-500.0,0.00024573,2]
[391671254,1760724640340,-1000.0,0.00024624,2]
[391671256,1760724640349,-500.0,0.00024657,2]
[391671258,1760724640358,-500.0,0.00024657,2]
[391671260,1760724640367,-167.06,0.00024657,2]
[391671262,1760724640377,-500.0,0.00024657,2]
[391671264,1760724640387,-500.0,0.00024657,2]
[391671266,1760724640397,-500.0,0.00024657,2]
[391671268,1760724640408,-500.0,0.00024657,2]
[391671270,1760724640417,-616.14106004,0.00024657,2]
[391671272,1760724640426,-500.0,0.00024657,2]
[391671274,1760724640435,-500.0,0.00024657,2]
[391671276,1760724640445,-500.0,0.00024657,2]
[391671278,1760724640453,-500.0,0.00024657,2]
[391671280,1760724640463,-500.0,0.00024657,2]
[391671282,1760724640472,-500.0,0.00024657,2]
[391671284,1760724640481,-500.0,0.00024657,2]
[391671286,1760724640490,-500.0,0.00024657,2]
[391671288,1760724640500,-500.0,0.00024657,2]
[391671290,1760724640509,-500.0,0.00024657,2]
[391671292,1760724640518,-500.0,0.00024657,2]
[391671294,1760724640528,-500.0,0.00024657,2]
[391671296,1760724640537,-500.0,0.00024657,2]
[391671298,1760724640546,-500.0,0.00024657,2]
[391671300,1760724640555,-500.0,0.00024657,2]
[391671302,1760724640564,-500.0,0.00024657,2]
[391671304,1760724640573,-500.0,0.00024657,2]
[391671305,1760724640582,-500.0,0.00024657,2]
[391671307,1760724640592,-500.0,0.00024657,2]
[391671309,1760724640601,-531.45,0.00024657,2]
[391671311,1760724640610,-500.0,0.00024657,2]
[391671313,1760724640619,-500.0,0.00024657,2]
[391671314,1760724640629,-500.0,0.00024657,2]
[391671315,1760724640638,-500.0,0.00024657,2]
[391671316,1760724640647,-500.0,0.00024657,2]
[391671317,1760724640659,-560.31867766,0.00024657,2]
[391671318,1760724640668,-500.0,0.00024657,2]
[391671320,1760724640678,-500.0,0.00024657,2]
[391671321,1760724640697,-500.0,0.00024657,2]
[391671322,1760724640707,-500.0,0.00024657,2]
[391671323,1760724640716,-500.0,0.00024657,2]
[391671324,1760724640726,-500.0,0.00024657,2]
[391671325,1760724640736,-500.0,0.00024773,2]
[391671326,1760724640745,-501.45384956,0.00024773,2]
[391671327,1760724640755,-640.81948005,0.00024773,2]
[391671328,1760724640764,-500.0,0.00024773,2]
[391671329,1760724640773,-500.0,0.00024841,2]
[391671330,1760724640783,-500.0,0.00024841,2]
[391671331,1760724640792,-500.0,0.00024841,2]
[391671332,1760724640801,-500.0,0.00024841,2]
[391671333,1760724640812,-500.0,0.00024841,2]
[391671334,1760724640821,-500.0,0.00024841,2]
[391671335,1760724640831,-500.0,0.00024841,2]
[391671336,1760724640841,-299.03144613,0.00024841,2]
[391671337,1760724640850,-500.0,0.00024841,2]
[391671338,1760724640860,-500.0,0.00024841,2]
[391671339,1760724640870,-575.0,0.00024841,2]